bitfinex/quotes_BTCUSD_20250614
["timestamp","ask_amount","ask_price","bid_price","bid_amount"]
[1749893819572,0.77721981,105060.0,105050.0,0.04409763]
[1749893820064,1.33227222,105060.0,105050.0,0.04409765]
[1749893820280,0.77721981,105060.0,105050.0,0.02624454]
[1749893820495,0.77721981,105060.0,105050.0,0.04409784]
[1749893820703,0.77721981,105060.0,105050.0,0.04409788]
[1749893820933,1.76842144,105060.0,105050.0,0.04409789]
[1749893821147,1.76842144,105060.0,105050.0,0.04409835]
[1749893821148,1.78842144,105060.0,105050.0,0.04409835]
[1749893821360,1.83982349,105060.0,105050.0,0.0440992]
[1749893821573,1.83982349,105060.0,105050.0,0.04409943]
[1749893821999,2.23982349,105060.0,105050.0,0.04409943]
[1749893822247,2.23982349,105060.0,105050.0,0.04409992]
[1749893822467,2.35606525,105060.0,105050.0,0.05302804]
[1749893822686,2.35606525,105060.0,105050.0,0.02624454]
[1749893823330,2.35606525,105060.0,105050.0,0.02424454]
[1749893823770,2.35606525,105060.0,105050.0,0.02324454]
[1749893824207,2.35606525,105060.0,105050.0,0.02424454]
[1749893824642,1.24596043,105060.0,105050.0,0.02424454]
[1749893824882,2.35606525,105060.0,105050.0,0.02424454]
[1749893825307,2.51074525,105060.0,105050.0,0.02424454]
[1749893827550,2.45407603,105060.0,105050.0,0.02424454]
[1749893834248,2.25991603,105060.0,105050.0,0.02424454]
[1749893834468,2.45435603,105060.0,105050.0,0.03317275]
[1749893834687,2.45435603,105060.0,105050.0,0.05102918]
[1749893834972,2.45431603,105060.0,105050.0,0.02424454]
[1749893835181,2.45431603,105060.0,105050.0,0.03317275]
[1749893835387,2.45431603,105060.0,105050.0,0.05102918]
[1749893835588,2.55046525,105060.0,105050.0,0.03317275]
[1749893836026,2.55046525,105060.0,105050.0,0.05102918]
[1749893836247,2.55046525,105060.0,105050.0,0.03317275]
[1749893836456,2.55046525,105060.0,105050.0,0.05102918]
[1749893836675,2.55046525,105060.0,105050.0,0.05102917]
[1749893837111,2.55046525,105060.0,105050.0,0.05102918]
[1749893837336,2.55046525,105060.0,105050.0,0.03317253]
[1749893837553,2.55046525,105060.0,105050.0,0.02424432]
[1749893837769,2.55046525,105060.0,105050.0,0.03317253]
[1749893837985,2.55046525,105060.0,105050.0,0.0153161]
[1749893838204,2.45431603,105060.0,105050.0,0.03317253]
[1749893838422,2.45431603,105060.0,105050.0,0.02424432]
[1749893838644,2.45431603,105060.0,105050.0,0.03317253]
[1749893838879,2.45431603,105060.0,105050.0,0.00638789]
[1749893839093,2.45431603,105060.0,105050.0,0.03315983]
[1749893839518,2.45431603,105060.0,105050.0,0.01531187]
[1749893839737,2.45431603,105060.0,105050.0,0.02423585]
[1749893839950,2.45431603,105060.0,105050.0,0.03315983]
[1749893840387,2.45431603,105060.0,105050.0,0.01531187]
[1749893840633,2.45431603,105060.0,105050.0,0.03315984]
[1749893840845,2.55046525,105060.0,105050.0,0.02423586]
[1749893841533,2.55046525,105060.0,105050.0,0.03315984]
[1749893841744,2.55046525,105060.0,105050.0,0.01531187]
[1749893841967,2.55046525,105060.0,105050.0,0.03315984]
[1749893842390,2.55046525,105060.0,105050.0,0.02423586]
[1749893842608,2.55046525,105060.0,105050.0,0.00638789]
[1749893842838,2.55046525,105060.0,105050.0,0.02423586]
[1749893843063,2.55046525,105060.0,105050.0,0.03315984]
[1749893843959,1.34421121,105060.0,105050.0,0.03315984]
[1749893844184,2.45431603,105060.0,105050.0,0.00638789]
[1749893844421,2.45431603,105060.0,105050.0,0.03315984]
[1749893844860,2.45431603,105060.0,105050.0,0.02423586]
[1749893845081,2.45431603,105060.0,105050.0,0.03315984]
[1749893845302,2.45431603,105060.0,105050.0,0.01531187]
[1749893845538,2.45431603,105060.0,105050.0,0.03315984]
[1749893846590,2.48961767,105060.0,105050.0,0.03315984]
[1749893846821,2.45431603,105060.0,105050.0,0.03315984]
[1749893847031,2.45431603,105060.0,105050.0,0.02423586]
[1749893847247,2.45431603,105060.0,105050.0,0.03315984]
[1749893847869,2.45431603,105060.0,105050.0,0.01531187]
[1749893848127,2.45431603,105060.0,105050.0,0.02423586]
[1749893848366,2.45431603,105060.0,105050.0,0.01531187]
[1749893848578,2.45431603,105060.0,105050.0,0.03315984]
[1749893848786,2.45431603,105060.0,105050.0,0.02423586]
[1749893849218,2.45431603,105060.0,105050.0,0.03315983]
[1749893849437,2.45431603,105060.0,105050.0,0.01531187]
[1749893849658,2.45431603,105060.0,105050.0,0.03315984]
[1749893850333,2.45431603,105060.0,105050.0,0.02423586]
[1749893850559,2.45431603,105060.0,105050.0,0.03315984]
[1749893850991,2.45431603,105060.0,105050.0,0.01531187]
[1749893851201,2.45431603,105060.0,105050.0,0.03315984]
[1749893852717,2.45431603,105060.0,105050.0,0.03317253]
[1749893853137,2.45431603,105060.0,105050.0,0.0153161]
[1749893853373,2.45431603,105060.0,105050.0,0.00638789]
[1749893853611,2.45431603,105060.0,105050.0,0.03317253]
[1749893853855,2.45431603,105060.0,105050.0,0.02424432]
[1749893854102,2.45431603,105060.0,105050.0,0.0153161]
[1749893854351,2.45431603,105060.0,105050.0,0.03317253]
[1749893854558,2.45415603,105060.0,105050.0,0.00638789]
[1749893854763,2.25991603,105060.0,105050.0,0.03317253]
[1749893854974,2.45415603,105060.0,105050.0,0.03317253]
[1749893855399,2.45415603,105060.0,105050.0,0.02424432]
[1749893855612,2.45415603,105060.0,105050.0,0.03317253]
[1749893855815,2.45415603,105060.0,105050.0,0.00638789]
[1749893856014,2.45415603,105060.0,105050.0,0.0153161]
[1749893856223,2.45415603,105060.0,105050.0,0.03317253]
[1749893856431,2.43825603,105060.0,105050.0,0.03317253]
[1749893856845,2.43825603,105060.0,105050.0,0.0153161]
[1749893857055,2.43825603,105060.0,105050.0,0.03317253]
[1749893857260,2.43825603,105060.0,105050.0,0.02878464]
[1749893857905,2.43825603,105060.0,105050.0,0.01985643]
[1749893858111,2.43825603,105060.0,105050.0,0.02878464]
[1749893858309,2.43825603,105060.0,105050.0,0.01092821]
[1749893858719,2.43825603,105060.0,105050.0,0.01985642]
[1749893858934,2.43825603,105060.0,105050.0,0.01092821]
[1749893859140,2.43825603,105060.0,105050.0,0.02878463]
[1749893859550,2.42235603,105060.0,105050.0,0.01985642]
[1749893859977,2.42235603,105060.0,105050.0,0.02878463]
[1749893860413,2.42235603,105060.0,105050.0,0.01092821]
[1749893860616,2.43825603,105060.0,105050.0,0.01092821]
[1749893860851,2.43825603,105060.0,105050.0,0.01985642]
[1749893861261,2.43825603,105060.0,105050.0,0.02878463]
[1749893861465,2.42235603,105060.0,105050.0,0.01985642]
[1749893861673,2.42235603,105060.0,105050.0,0.002]
[1749893861890,2.42235603,105060.0,105050.0,0.01092821]
[1749893862425,2.22811603,105060.0,105050.0,0.01092821]
[1749893862643,1.19545768,105060.0,105050.0,0.30551267]
[1749893862857,1.34977768,105060.0,105050.0,0.2965828]
[1749893863065,1.32697163,105060.0,105050.0,0.2965828]
[1749893863284,1.31745399,105060.0,105050.0,0.29658251]
[1749893863729,1.31745399,105060.0,105050.0,0.27219735]
[1749893863943,1.31745399,105060.0,105050.0,0.26267844]
[1749893864153,1.31745399,105060.0,105050.0,0.27219744]
[1749893864366,1.16313399,105060.0,105050.0,0.27219744]
[1749893864582,1.31745399,105060.0,105050.0,0.27219743]
[1749893865016,1.31745399,105060.0,105050.0,0.27219744]
[1749893865673,1.31745399,105060.0,105050.0,0.25434298]
[1749893865881,1.31745399,105060.0,105050.0,0.27219744]
[1749893867379,0.76240158,105060.0,105050.0,0.30250698]
[1749893867612,1.31745399,105060.0,105050.0,0.32036144]
[1749893867824,1.28885799,105060.0,105050.0,0.32036144]
[1749893868275,0.90457005,105060.0,105050.0,0.29123499]
[1749893868492,1.12696396,105060.0,105050.0,0.29123435]
[1749893868700,0.97272387,105060.0,105050.0,0.29123435]
[1749893869128,0.97272387,105060.0,105050.0,0.2912338]
[1749893869335,0.97272387,105060.0,105050.0,0.27338053]
[1749893869557,0.97272387,105060.0,105050.0,0.29123361]
[1749893869558,0.98224205,105060.0,105050.0,0.29123361]
[1749893869767,0.94264205,105060.0,105050.0,0.33761198]
[1749893869971,1.13648205,105060.0,105050.0,0.31975891]
[1749893870193,1.13648205,105060.0,105050.0,0.2912336]
[1749893870875,1.12696387,105060.0,105050.0,0.2912336]
[1749893871080,1.13648205,105060.0,105050.0,0.2912336]
[1749893871514,1.13648205,105060.0,105050.0,0.27338053]
[1749893872148,1.13648205,105060.0,105050.0,0.2912336]
[1749893873217,1.13648205,105060.0,105050.0,0.27338053]
[1749893873475,1.13648205,105060.0,105050.0,0.2912336]
[1749893873971,1.13648205,105060.0,105050.0,0.27338053]
[1749893874183,1.13648205,105060.0,105050.0,0.2912336]
[1749893874844,1.13648205,105060.0,105050.0,0.27338053]
[1749893875051,1.13648205,105060.0,105050.0,0.2912336]
[1749893875496,1.32684945,105060.0,105050.0,0.2912336]
[1749893875709,1.13648205,105060.0,105050.0,0.2912336]
[1749893875914,1.13648268,105060.0,105050.0,0.2912336]
[1749893876555,1.13648268,105060.0,105050.0,0.27338053]
[1749893876970,1.13648268,105060.0,105050.0,0.2912336]
[1749893877181,1.13648268,105060.0,105050.0,0.27338053]
[1749893877630,1.13648268,105060.0,105050.0,0.29116627]
[1749893877837,0.98224268,105060.0,105050.0,0.29116627]
[1749893878046,0.98224268,105060.0,105050.0,0.27338053]
[1749893878256,0.42719027,105060.0,105050.0,0.31975891]
[1749893878502,0.98224268,105060.0,105050.0,0.33754465]
[1749893878707,1.17261008,105060.0,105050.0,0.33754465]
[1749893878881,1.17261008,105060.0,105050.0,0.31975891]
[1749893879100,1.17261008,105060.0,105050.0,0.33754465]
[1749893879486,1.17261008,105060.0,105050.0,0.29116627]
[1749893879910,1.32673008,105060.0,105050.0,0.29116627]
[1749893880291,1.32673008,105060.0,105050.0,0.27338053]
[1749893880494,1.32673008,105060.0,105050.0,0.29116627]
[1749893882012,1.31721181,105060.0,105050.0,0.29116627]
[1749893884016,1.12684441,105060.0,105050.0,0.29116627]
[1749893884448,0.67613637,105060.0,105050.0,0.33932322]
[1749893884658,0.62320551,105060.0,105050.0,0.33932322]
[1749893884861,0.62320551,105060.0,105050.0,0.32153748]
[1749893885066,0.62320551,105060.0,105050.0,0.33932322]
[1749893885274,0.6327236,105060.0,105050.0,0.33932322]
[1749893885480,0.62320551,105060.0,105050.0,0.32153748]
[1749893885685,0.63272369,105060.0,105050.0,0.33932322]
[1749893886366,0.63272369,105060.0,105050.0,0.32153748]
[1749893886582,0.81357417,105060.0,105050.0,0.24482398]
[1749893886813,1.36862658,105060.0,105050.0,0.23872934]
[1749893887019,1.36862658,105060.0,105050.0,0.23872943]
[1749893887222,1.36862658,105060.0,105050.0,0.2387295]
[1749893887429,1.35910867,105060.0,105050.0,0.2387295]
[1749893887637,1.69910867,105060.0,105050.0,0.2482485]
[1749893888049,1.69910867,105060.0,105050.0,0.23046207]
[1749893888465,1.69910867,105060.0,105050.0,0.2482485]
[1749893888673,1.14405626,105060.0,105050.0,0.23998098]
[1749893888881,1.29817626,105060.0,105050.0,0.25783474]
[1749893889297,1.29817626,105060.0,105050.0,0.24831583]
[1749893889534,1.29817626,105060.0,105050.0,0.25783474]
[1749893889728,1.29817626,105060.0,105050.0,0.24831583]
[1749893890015,1.29817626,105060.0,105050.0,0.23046207]
[1749893890239,1.29817626,105060.0,105050.0,0.24831583]
[1749893890437,1.85322867,105060.0,105050.0,0.23046207]
[1749893890882,1.85322867,105060.0,105050.0,0.24831583]
[1749893891102,1.29833626,105060.0,105050.0,0.23046207]
[1749893891304,1.31353626,105060.0,105050.0,0.23879683]
[1749893891706,1.31353626,105060.0,105050.0,0.22094307]
[1749893891912,1.31353626,105060.0,105050.0,0.23879683]
[1749893892785,1.29833626,105060.0,105050.0,0.22094307]
[1749893892988,1.29833626,105060.0,105050.0,0.23046207]
[1749893893196,1.29833626,105060.0,105050.0,0.24831583]
[1749893893371,1.29833626,105060.0,105050.0,0.24831581]
[1749893893576,1.29833626,105060.0,105050.0,0.23879682]
[1749893893797,1.87527049,105060.0,105050.0,0.002]
[1749893894003,1.87527049,105060.0,105050.0,0.01985389]
[1749893894204,1.87527049,105060.0,105050.0,0.01985394]
[1749893894399,1.87527049,105060.0,105050.0,0.01985396]
[1749893894603,1.87527049,105060.0,105050.0,0.01985427]
[1749893894822,1.87527049,105060.0,105050.0,0.01985445]
[1749893895022,1.87527049,105060.0,105050.0,0.01985459]
[1749893898772,1.87527049,105060.0,105050.0,0.01985458]
[1749893899094,1.87527049,105060.0,105050.0,0.01985459]
[1749893899520,1.87527049,105060.0,105050.0,0.002]
[1749893899736,1.87527049,105060.0,105050.0,0.01985459]
[1749893899951,1.87527049,105060.0,105050.0,0.002]
[1749893900166,1.87527049,105060.0,105050.0,0.01985459]
[1749893900376,1.87527049,105060.0,105050.0,0.002]
[1749893900581,1.87527049,105060.0,105050.0,0.01985451]
[1749893900788,1.87527049,105060.0,105050.0,0.01985459]
[1749893901469,1.89527049,105060.0,105050.0,0.01985459]
[1749893901695,1.89527049,105060.0,105050.0,0.01985463]
[1749893901926,1.89527049,105060.0,105050.0,0.002]
[1749893902157,1.89527049,105060.0,105050.0,0.01985484]
[1749893902397,1.89527049,105060.0,105050.0,0.01985485]
[1749893902606,1.89527049,105060.0,105050.0,0.0198549]
[1749893902824,1.89527049,105060.0,105050.0,0.002]
[1749893903029,1.89527049,105060.0,105050.0,0.0198549]
[1749893903832,1.89527049,105060.0,105050.0,0.002]
[1749893903999,1.89527049,105060.0,105050.0,0.01982167]
[1749893904210,2.31805911,105060.0,105050.0,0.028733]
[1749893904407,2.31805911,105060.0,105050.0,0.01982225]
[1749893904615,2.31805911,105060.0,105050.0,0.01091118]
[1749893904819,2.31805911,105060.0,105050.0,0.02873355]
[1749893904993,2.31805911,105060.0,105050.0,0.01091118]
[1749893905201,2.31805612,105060.0,105050.0,0.02873366]
[1749893905440,2.31805612,105060.0,105050.0,0.0109113]
[1749893905650,2.31805612,105060.0,105050.0,0.0198226]
[1749893905857,2.31805612,105060.0,105050.0,0.0287339]
[1749893906095,2.31805612,105060.0,105050.0,0.0109113]
[1749893906448,2.31805612,105060.0,105050.0,0.002]
[1749893906655,2.31805612,105060.0,105050.0,0.0287339]
[1749893907137,2.31805612,105060.0,105050.0,0.02878376]
[1749893907548,2.31805612,105060.0,105050.0,0.01092792]
[1749893907745,2.31805612,105060.0,105050.0,0.02878376]
[1749893908362,7.46429788,105060.0,105050.0,0.02878376]
[1749893908567,7.46429788,105060.0,105050.0,0.02878386]
[1749893908786,7.46429788,105060.0,105050.0,0.02878416]
[1749893908992,7.49289588,105060.0,105050.0,0.02878417]
[1749893909418,7.49289588,105060.0,105050.0,0.02878423]
[1749893909765,7.47188368,105060.0,105050.0,0.02878425]
[1749893910103,7.48140195,105060.0,105050.0,0.02878425]
[1749893910286,7.57755117,105060.0,105050.0,0.01092808]
[1749893910491,7.57755117,105060.0,105050.0,0.02878425]
[1749893910702,7.48140195,105060.0,105050.0,0.02878425]
[1749893911253,7.48140195,105060.0,105050.0,0.01985617]
[1749893911413,7.48140195,105060.0,105050.0,0.01092808]
[1749893911645,7.48140195,105060.0,105050.0,0.03771233]
[1749893911842,7.48140195,105060.0,105050.0,0.02878425]
[1749893912074,7.48140195,105060.0,105050.0,0.03771233]
[1749893912280,6.37129713,105060.0,105050.0,0.03771233]
[1749893912402,7.48140195,105060.0,105050.0,0.03771233]
[1749893912859,7.48140195,105060.0,105050.0,0.02878425]
[1749893913089,7.48140195,105060.0,105050.0,0.03771233]
[1749893913243,7.48140195,105060.0,105050.0,0.02878425]
[1749893913441,7.48140195,105060.0,105050.0,0.03771233]
[1749893913874,7.48140195,105060.0,105050.0,0.01985616]
[1749893914297,7.48140195,105060.0,105050.0,0.03771233]
[1749893914870,7.48140195,105060.0,105050.0,0.01985616]
[1749893915297,7.48140195,105060.0,105050.0,0.03771233]
[1749893916085,7.57755117,105060.0,105050.0,0.03771233]
[1749893916514,6.37129713,105060.0,105050.0,0.03771233]
[1749893916721,7.48140195,105060.0,105050.0,0.03771233]
[1749893918924,7.48140195,105060.0,105050.0,0.01985616]
[1749893919114,7.48140195,105060.0,105050.0,0.03771233]
[1749893919377,7.48140195,105060.0,105050.0,0.02878425]
[1749893919798,7.48140195,105060.0,105050.0,0.01092808]
[1749893920003,7.48140195,105060.0,105050.0,0.03771233]
[1749893920221,7.48140195,105060.0,105050.0,0.02878425]
[1749893920446,7.48140195,105060.0,105050.0,0.03771233]
[1749893920659,7.48140195,105060.0,105050.0,0.01985616]
[1749893921063,7.48140195,105060.0,105050.0,0.03771233]
[1749893921268,7.48140195,105060.0,105050.0,0.01985616]
[1749893921485,7.48140195,105060.0,105050.0,0.02878425]
[1749893921687,7.48140195,105060.0,105050.0,0.01092808]
[1749893921806,7.48140195,105060.0,105050.0,0.01985616]
[1749893922006,7.48140195,105060.0,105050.0,0.02878425]
[1749893922273,7.48140195,105060.0,105050.0,0.03771233]
[1749893922624,7.48140195,105060.0,105050.0,0.01985616]
[1749893923004,7.48140195,105060.0,105050.0,0.02878425]
[1749893923214,7.48140195,105060.0,105050.0,0.01985616]
[1749893923391,7.48140195,105060.0,105050.0,0.03771233]
[1749893923588,7.48140195,105060.0,105050.0,0.01092808]
[1749893924048,7.48140195,105060.0,105050.0,0.03767507]
[1749893924252,7.48140195,105060.0,105050.0,0.01984374]
[1749893924481,7.48140195,105060.0,105050.0,0.03767507]
[1749893925329,7.48140195,105060.0,105050.0,0.02875941]
[1749893925539,7.48140195,105060.0,105050.0,0.03767507]
[1749893926188,7.48140195,105060.0,105050.0,0.01984374]
[1749893926511,7.48140195,105060.0,105050.0,0.03767507]
[1749893926722,7.48140195,105060.0,105050.0,0.0376748]
[1749893926887,7.48140195,105060.0,105050.0,0.01984365]
[1749893927373,7.48140195,105060.0,105050.0,0.0376748]
[1749893927600,7.48140195,105060.0,105050.0,0.01092808]
[1749893927779,7.48140195,105060.0,105050.0,0.0376748]
[1749893927996,7.28752195,105060.0,105050.0,0.01984365]
[1749893928197,1.72010978,105060.0,105050.0,0.276312]
[1749893928389,2.26564392,105060.0,105050.0,0.05074331]
[1749893928623,2.26564392,105060.0,105050.0,0.26847816]
[1749893928827,2.26564392,105060.0,105050.0,0.25064791]
[1749893928979,2.29424092,105060.0,105050.0,0.0685735]
[1749893929365,2.29424092,105060.0,105050.0,0.24112875]
[1749893929553,2.29424092,105060.0,105050.0,0.25004389]
[1749893929754,2.29428092,105060.0,105050.0,0.0685735]
[1749893929953,2.29428092,105060.0,105050.0,0.05074322]
[1749893930183,2.29428092,105060.0,105050.0,0.0685735]
[1749893930436,2.29428092,105060.0,105050.0,0.05074322]
[1749893930642,2.10036092,105060.0,105050.0,0.0685735]
[1749893930842,2.29428092,105060.0,105050.0,0.05074322]
[1749893931043,2.29428092,105060.0,105050.0,0.05965836]
[1749893931494,2.29428092,105060.0,105050.0,0.08847241]
[1749893931711,2.29428092,105060.0,105050.0,0.09738755]
[1749893931858,2.29428092,105060.0,105050.0,0.07064213]
[1749893932273,2.29428092,105060.0,105050.0,0.07955727]
[1749893932470,2.29428092,105060.0,105050.0,0.05965836]
[1749893932872,2.29428092,105060.0,105050.0,0.0685735]
[1749893933072,2.29428092,105060.0,105050.0,0.04182808]
[1749893933335,2.29428092,105060.0,105050.0,0.0685735]
[1749893933967,2.29428092,105060.0,105050.0,0.06859834]
[1749893934171,2.29428092,105060.0,105050.0,0.06861076]
[1749893934661,2.29428092,105060.0,105050.0,0.01985564]
[1749893934799,2.29428092,105060.0,105050.0,0.03771076]
[1749893935207,2.29428092,105060.0,105050.0,0.0287832]
[1749893935432,2.29428092,105060.0,105050.0,0.03771076]
[1749893935981,2.29428092,105060.0,105050.0,0.01985568]
[1749893936347,2.29428092,105060.0,105050.0,0.01092808]
[1749893936662,2.29428092,105060.0,105050.0,0.03771088]
[1749893936909,2.29428092,105060.0,105050.0,0.02878328]
[1749893937098,2.29428092,105060.0,105050.0,0.03771088]
[1749893937328,2.29428417,105060.0,105050.0,0.03771088]
[1749893937951,2.29428417,105060.0,105050.0,0.02878328]
[1749893938138,2.29428417,105060.0,105050.0,0.03771088]
[1749893938307,2.29428417,105060.0,105050.0,0.01985568]
[1749893938508,2.29428417,105060.0,105050.0,0.01092808]
[1749893938712,2.29428417,105060.0,105050.0,0.03771088]
[1749893938909,2.29428417,105060.0,105050.0,0.02878328]
[1749893939167,2.29428417,105060.0,105050.0,0.03771088]
[1749893939389,2.29428417,105060.0,105050.0,0.01985568]
[1749893939565,2.29428417,105060.0,105050.0,0.03771088]
[1749893939735,2.29428417,105060.0,105050.0,0.01985568]
[1749893939928,2.29428417,105060.0,105050.0,0.01092808]
[1749893940143,2.29428417,105060.0,105050.0,0.03771088]
[1749893940327,2.29428417,105060.0,105050.0,0.01092808]
[1749893940537,2.29428417,105060.0,105050.0,0.03771088]
[1749893940943,2.29428417,105060.0,105050.0,0.02878328]
[1749893941146,2.29428417,105060.0,105050.0,0.03771088]
[1749893941349,2.29428417,105060.0,105050.0,0.02878328]
[1749893941568,2.29428417,105060.0,105050.0,0.01985568]
[1749893941770,2.29428417,105060.0,105050.0,0.01984815]
[1749893941986,2.29428417,105060.0,105050.0,0.02876822]
[1749893942192,2.29428417,105060.0,105050.0,0.03768829]
[1749893942952,2.29428417,105060.0,105050.0,0.03768828]
[1749893943181,2.29428417,105060.0,105050.0,0.01984814]
[1749893943427,2.29428417,105060.0,105050.0,0.03768827]
[1749893944007,2.29428417,105060.0,105050.0,0.01092808]
[1749893944213,2.29428417,105060.0,105050.0,0.03768827]
[1749893944815,2.29428417,105060.0,105050.0,0.03768814]
[1749893945010,2.29414354,105060.0,105050.0,0.03768802]
[1749893945418,2.29414354,105060.0,105050.0,0.03768799]
[1749893945620,2.29414354,105060.0,105050.0,0.01984804]
[1749893946188,2.29414354,105060.0,105050.0,0.01092808]
[1749893946399,2.29414354,105060.0,105050.0,0.02876801]
[1749893946646,2.29414354,105060.0,105050.0,0.01984804]
[1749893946856,2.29414354,105060.0,105050.0,0.03768797]
[1749893947060,2.29414354,105060.0,105050.0,0.03768781]
[1749893947474,2.29414354,105060.0,105050.0,0.01092808]
[1749893947670,2.29414354,105060.0,105050.0,0.02876769]
[1749893947888,2.29414354,105060.0,105050.0,0.01984788]
[1749893948049,2.29414354,105060.0,105050.0,0.03768749]
[1749893948448,2.29414354,105060.0,105050.0,0.01092808]
[1749893948610,2.29414354,105060.0,105050.0,0.03768749]
[1749893949427,2.29414354,105060.0,105050.0,0.02876769]
[1749893949669,2.29414354,105060.0,105050.0,0.03768749]
[1749893949875,2.10022354,105060.0,105050.0,0.23214253]
[1749893950087,1.53513871,105060.0,105050.0,0.30042095]
[1749893950254,1.53513871,105060.0,105050.0,0.29150091]
[1749893950457,1.50654171,105060.0,105050.0,0.29150091]
[1749893950689,1.50654171,105060.0,105050.0,0.29150081]
[1749893950886,0.98445627,105060.0,105050.0,0.29150081]
[1749893951090,1.17817627,105060.0,105050.0,0.30101981]
[1749893951239,1.17817627,105060.0,105050.0,0.30101974]
[1749893951657,1.17817627,105060.0,105050.0,0.30101978]
[1749893952055,1.17813627,105060.0,105050.0,0.30101978]
[1749893952312,1.17813627,105060.0,105050.0,0.28318071]
[1749893952540,1.17813627,105060.0,105050.0,0.30101979]
[1749893952747,1.17813627,105060.0,105050.0,0.30101971]
[1749893952902,1.17813627,105060.0,105050.0,0.30101969]
[1749893953108,1.17813627,105060.0,105050.0,0.30101958]
[1749893953312,1.17813627,105060.0,105050.0,0.30101944]
[1749893953516,1.17813627,105060.0,105050.0,0.29269962]
[1749893953734,1.17813627,105060.0,105050.0,0.31054755]
[1749893953899,1.17813627,105060.0,105050.0,0.31054768]
[1749893954117,1.17813627,105060.0,105050.0,0.31054769]
[1749893954522,1.17813627,105060.0,105050.0,0.29269962]
[1749893954835,1.17813627,105060.0,105050.0,0.2618707]
[1749893955041,1.17813627,105060.0,105050.0,0.27971877]
[1749893955772,1.17813627,105060.0,105050.0,0.27019985]
[1749893955943,0.62308386,105060.0,105050.0,0.27971876]
[1749893956173,1.17813627,105060.0,105050.0,0.28923759]
[1749893956305,1.17813627,105060.0,105050.0,0.33815359]
[1749893956510,1.17813627,105060.0,105050.0,0.28923757]
[1749893956717,1.17813627,105060.0,105050.0,0.28923756]
[1749893957691,1.17813627,105060.0,105050.0,0.27138952]
[1749893957909,1.17813627,105060.0,105050.0,0.3070856]
[1749893958118,1.17813627,105060.0,105050.0,0.27971874]
[1749893958331,1.17813627,105060.0,105050.0,0.29756678]
[1749893958543,1.17813627,105060.0,105050.0,0.3070856]
[1749893960624,1.17813627,105060.0,105050.0,0.30707534]
[1749893961046,1.17813627,105060.0,105050.0,0.27971874]
[1749893961256,1.17813627,105060.0,105050.0,0.29755652]
[1749893961474,1.17813627,105060.0,105050.0,0.27971874]
[1749893961966,1.17813627,105060.0,105050.0,0.29755652]
[1749893962182,0.62292386,105060.0,105050.0,0.29755652]
[1749893962385,1.73302868,105060.0,105050.0,0.29755652]
[1749893962749,1.73302868,105060.0,105050.0,0.27971874]
[1749893962954,0.62292386,105060.0,105050.0,0.29755652]
[1749893963305,1.73302868,105060.0,105050.0,0.27971874]
[1749893963507,1.73302868,105060.0,105050.0,0.29755652]
[1749893963669,1.73302868,105060.0,105050.0,0.28803761]
[1749893964024,1.73302868,105060.0,105050.0,0.27019983]
[1749893964914,1.73302868,105060.0,105050.0,0.28803761]
[1749893965618,1.73302868,105060.0,105050.0,0.27019983]
[1749893965814,1.72351059,105060.0,105050.0,0.28803761]
[1749893965962,1.72351059,105060.0,105050.0,0.26068083]
[1749893966170,1.72351059,105060.0,105050.0,0.27851861]
[1749893967544,1.71399222,105060.0,105050.0,0.24651876]
[1749893968105,1.71399222,105060.0,105050.0,0.22868092]
[1749893968288,1.71399222,105060.0,105050.0,0.24651876]
[1749893968485,1.71399222,105060.0,105050.0,0.04661396]
[1749893968686,1.84544144,105060.0,105050.0,0.04661405]
[1749893969013,1.74929222,105060.0,105050.0,0.04661465]
[1749893969220,1.77207781,105060.0,105050.0,0.04661465]
[1749893969451,1.80067381,105060.0,105050.0,0.02877612]
[1749893969653,1.80067381,105060.0,105050.0,0.04661492]
[1749893969996,1.55788822,105060.0,105050.0,0.02877612]
[1749893970399,1.55788822,105060.0,105050.0,0.04661492]
[1749893971224,1.55788822,105060.0,105050.0,0.04661493]
[1749893971624,1.55788822,105060.0,105050.0,0.02877612]
[1749893972056,1.55788822,105060.0,105050.0,0.04661499]
[1749893972459,1.55788822,105060.0,105050.0,0.04661501]
[1749893972659,1.55788822,105060.0,105050.0,0.02877612]
[1749893972867,1.55788822,105060.0,105050.0,0.04661501]
[1749893972868,1.75788822,105060.0,105050.0,0.04661501]
[1749893973041,1.78066672,105060.0,105050.0,0.04661501]
[1749893973241,1.78066672,105060.0,105050.0,0.02877612]
[1749893973484,1.78066672,105060.0,105050.0,0.04661526]
[1749893973683,1.78066672,105060.0,105050.0,0.03769569]
[1749893973920,1.78066672,105060.0,105050.0,0.05553483]
[1749893974122,1.78066672,105060.0,105050.0,0.05553502]
[1749893974467,1.78066672,105060.0,105050.0,0.02877612]
[1749893974672,1.78066672,105060.0,105050.0,0.05553521]
[1749893975006,6.83066672,105060.0,105050.0,0.03769462]
[1749893975271,6.83066672,105060.0,105050.0,0.05553166]
[1749893975480,6.83066672,105060.0,105050.0,0.05553168]
[1749893975697,6.83066672,105060.0,105050.0,0.02877612]
[1749893975911,6.83066672,105060.0,105050.0,0.03769464]
[1749893976126,6.83066672,105060.0,105050.0,0.05553171]
[1749893976537,6.92681594,105060.0,105050.0,0.05553171]
[1749893976996,6.92681594,105060.0,105050.0,0.05552405]
[1749893977203,6.92681594,105060.0,105050.0,0.05552022]
[1749893978057,6.92681594,105060.0,105050.0,0.04660552]
[1749893978517,6.92681594,105060.0,105050.0,0.02877612]
[1749893978738,6.92681594,105060.0,105050.0,0.05552022]
[1749893979382,6.83066672,105060.0,105050.0,0.02877612]
[1749893979591,6.83066672,105060.0,105050.0,0.05552022]
[1749893979797,6.83066672,105060.0,105050.0,0.04660552]
[1749893979998,6.83066672,105060.0,105050.0,0.05552022]
[1749893980251,6.83066672,105060.0,105050.0,0.04660552]
[1749893980491,6.83066672,105060.0,105050.0,0.05552022]
[1749893980919,6.83066672,105060.0,105050.0,0.02877612]
[1749893981133,6.92681594,105060.0,105050.0,0.04660552]
[1749893981370,6.83066672,105060.0,105050.0,0.05552022]
[1749893981799,6.83066672,105060.0,105050.0,0.03769082]
[1749893982065,6.83066672,105060.0,105050.0,0.05552022]
[1749893982490,6.83066672,105060.0,105050.0,0.04660552]
[1749893982689,6.83066672,105060.0,105050.0,0.03769082]
[1749893983115,6.83066672,105060.0,105050.0,0.05552022]
[1749893983742,6.83066672,105060.0,105050.0,0.02877612]
[1749893983947,6.83066672,105060.0,105050.0,0.05552022]
[1749893984168,6.83066672,105060.0,105050.0,0.03769082]
[1749893984380,6.83066672,105060.0,105050.0,0.05552022]
[1749893984617,6.83066672,105060.0,105050.0,0.04660552]
[1749893985076,6.83066672,105060.0,105050.0,0.03769082]
[1749893985310,6.83066672,105060.0,105050.0,0.04660552]
[1749893985538,6.83066672,105060.0,105050.0,0.05552022]
[1749893986927,6.62606666,105060.0,105050.0,0.05552022]
[1749893987181,6.81643406,105060.0,105050.0,0.03769082]
[1749893987398,6.81643406,105060.0,105050.0,0.05552022]
[1749893987608,1.73113406,105060.0,105050.0,0.03769082]
[1749893987787,1.73113406,105060.0,105050.0,0.02877612]
[1749893987995,1.73113406,105060.0,105050.0,0.04660546]
[1749893988170,1.73113406,105060.0,105050.0,0.05552013]